fUST/lending_fUST_20240628
["ID","MTS","AMOUNT","RATE_DAILY","PERIOD"]
[330493669,1719508341759,153.80876398,0.00025743,2]
[330493670,1719508342485,153.80876398,0.00026326,2]
[330493671,1719508342530,222.33636282,0.00024367,2]
[330493672,1719508342786,153.80876398,0.00026656,2]
[330493673,1719508343031,222.33636282,0.00024466,2]
[330493674,1719508343289,153.80876398,0.00026983,2]
[330493675,1719508343315,159.5012381,0.0002854,2]
[330493676,1719508343541,222.33636282,0.00024638,2]
[330493677,1719508343975,153.80876398,0.00026987,2]
[330493678,1719508344091,222.33636282,0.00024916,2]
[330493679,1719508344539,153.80876398,0.00027042,2]
[330493680,1719508344859,222.33636282,0.00024987,2]
[330493681,1719508345055,153.80876398,0.00027579,2]
[330493682,1719508345404,222.33636282,0.00025729,2]
[330493683,1719508345570,153.80876398,0.0002792,2]
[330493686,1719509130120,-214.97210853,0.00020996,2]
[330493687,1719509244753,-92.93739195,0.00020996,2]
[330493688,1719509244774,-130.43251105,0.00021096,2]
[330493689,1719509251093,-49.47738395,0.00021096,2]
[330493690,1719509251114,-5912.24155105,0.00022941,2]
[330493691,1719509251136,-164.09138626,0.00023959,2]
[330493692,1719509251159,-159.5012381,0.00024615,2]
[330493693,1719509251179,-177.86909026,0.00024807,2]
[330493694,1719509251200,-163.724839,0.0002499,2]
[330493695,1719509251221,-177.86909026,0.00025012,2]
[330493696,1719509251242,-177.86909026,0.00025131,2]
[330493697,1719509251264,-153.80876398,0.00025194,2]
[330493698,1719509251285,-300.0,0.00025222,2]
[330493699,1719509251306,-300.0,0.00025222,2]
[330493700,1719509251326,-24820.57193001,0.00025223,2]
[330493702,1719509346127,-150.0,0.00023123,2]
[330493703,1719509346150,-156.12436737,0.00025001,2]
[330493704,1719509346172,-300.0,0.00025222,2]
[330493705,1719509346193,-300.0,0.00025222,2]
[330493706,1719509346213,-848.64038939,0.00025223,2]
[330493707,1719509350159,-11718.9294804,0.00025223,2]
[330493708,1719509350181,-177.86909026,0.00025257,2]
[330493709,1719509350202,-389.8723324,0.00025273,2]
[330493710,1719509350224,-177.86909026,0.00025367,2]
[330493711,1719509350244,-1647.16795346,0.00025449,2]
[330493712,1719509350266,-2094.6721062,0.00025542,2]
[330493713,1719509350287,-2094.6659985,0.00025548,2]
[330493714,1719509350307,-275.441064,0.00025573,2]
[330493715,1719509350326,-3000.0,0.00026199,2]
[330493716,1719509350346,-250.0,0.00026277,2]
[330493717,1719509350367,-156.12436737,0.00026277,2]
[330493718,1719509350386,-177.86909026,0.00026588,2]
[330493719,1719509350407,-153.80876398,0.00026677,2]
[330493720,1719509350427,-156.12436737,0.00026684,2]
[330493721,1719509350449,-177.86909026,0.00027137,2]
[330493722,1719509350470,-156.12436737,0.00027174,2]
[330493723,1719509350490,-179.909895,0.00027195,2]
[330493724,1719509350511,-153.80876398,0.00027287,2]
[330493725,1719509350532,-177.86909026,0.00027291,2]
[330493726,1719509350552,-420.0,0.00027317,2]
[330493727,1719509350572,-177.86909026,0.00027548,2]
[330493728,1719509350593,-156.12436737,0.00027585,2]
[330493729,1719509350614,-153.80876398,0.0002766,2]
[330493730,1719509350636,-420.0,0.00027744,2]
[330493731,1719509350656,-177.86909026,0.00027866,2]
[330493732,1719509350676,-177.86909026,0.0002799,2]
[330493733,1719509350696,-177.86909026,0.00028024,2]
[330493734,1719509350832,-156.12436737,0.00028044,2]
[330493735,1719509350853,-150.0,0.00028123,2]
[330493736,1719509350873,-177.86909026,0.00028339,2]
[330493737,1719509350894,-177.86909026,0.00028434,2]
[330493738,1719509350915,-177.86909026,0.00028538,2]
[330493739,1719509350934,-177.86909026,0.00028599,2]
[330493740,1719509350954,-644.16050716,0.0002873,2]
[330493741,1719509350973,-784.73967311,0.00028756,2]
[330493742,1719509350995,-153.80876398,0.00028917,2]
[330493743,1719509351015,-177.86909026,0.00028928,2]
[330493744,1719509351035,-153.80876398,0.00029081,2]
[330493745,1719509351057,-153.80876398,0.00029244,2]
[330493746,1719509351078,-287.0,0.00029587,2]
[330493747,1719509351103,-177.86909026,0.00029676,2]
[330493748,1719509351124,-457.45943987,0.00029901,2]
[330493749,1719509351145,-155.27026086,0.00029901,2]
[330493750,1719509351168,-517.02244669,0.00029903,2]
[330493751,1719509351189,-373.67425734,0.00029979,2]
[330493752,1719509351211,-524.60290255,0.00029999,2]
[330493753,1719509351232,-177.86909026,0.00030031,7]
[330493754,1719509351255,-153.80876398,0.0003012,7]
[330493755,1719509351276,-153.80876398,0.00030127,7]
[330493756,1719509351295,-156.12436737,0.00030353,7]
[330493757,1719509351315,-177.86909026,0.00030453,7]
[330493758,1719509351335,-287.0,0.00030518,2]
[330493759,1719509351356,-177.86909026,0.00030552,7]
[330493760,1719509352615,-153.80876398,0.00030733,7]
[330493761,1719509352643,-177.86909026,0.00030749,7]
[330493762,1719509352667,-177.86909026,0.00030927,7]
[330493763,1719509352688,-153.80876398,0.00031026,7]
[330493764,1719509352710,-153.80876398,0.00031091,7]
[330493765,1719509359877,475.007334,0.00030503,2]
[330493766,1719509379174,193.84908406,0.00030229,4]
[330493767,1719509386214,182.0321707,0.00030573,4]
[330493768,1719509389496,481.84078748,0.00030573,4]
[330493769,1719509393522,519.12348715,0.00030573,4]
[330493770,1719509415527,4465.98996318,0.00030507,2]
[330493771,1719509415546,266.06682302,0.00030507,2]
[330493772,1719509415566,1153.84014418,0.00030507,2]
[330493773,1719509415587,1043.067152,0.00030507,2]
[330493821,1719509432312,-154.72922386,0.00030229,4]
[330493823,1719509432322,-4661.57789951,0.00030507,2]
[330493825,1719509432334,-900.80826738,0.00030507,2]
[330494131,1719509437983,-1798.75826366,0.00030507,2]
[330494132,1719509437996,-4564.13316628,0.00030507,2]
[330494133,1719509438008,-602.05594464,0.00030507,2]
[330494134,1719509438021,-5443.70237615,0.00030507,2]
[330494135,1719509438032,-283.95938254,0.00030573,3]
[330494136,1719509438043,-153.80876398,0.00031232,7]
[330494137,1719509438053,-153.80876398,0.00031248,7]
[330494138,1719509438064,-156.12436737,0.00031347,7]
[330494139,1719509438076,-153.80876398,0.00031683,7]
[330494140,1719509438088,-177.86909026,0.00031749,7]
[330494141,1719509438098,-153.80876398,0.00031857,7]
[330494142,1719509438110,-156.12436745,0.00031979,7]
[330494144,1719509438128,-153.80876398,0.00032093,7]
[330494145,1719509438138,-5280.10467953,0.00032183,2]
[330494146,1719509438149,-209.72130719,0.00032229,4]
[330494148,1719509438160,-164.63956456,0.00032272,4]
[330494149,1719509438170,-177.86909026,0.00032351,7]
[330494150,1719509438180,-212.62,0.0003249,3]
[330494151,1719509438190,-192.102948,0.0003249,3]
[330494152,1719509438205,-333.95878176,0.0003249,3]
[330494153,1719509438217,-3189.86401734,0.0003249,3]
[330494240,1719509440140,-15504.40148692,0.0003249,3]
[330494241,1719509440154,-999.9933705,0.0003249,3]
[330494542,1719509446996,-1540.35939548,0.0003249,3]
[330494543,1719509447006,-6316.80862579,0.0003249,3]
[330494544,1719509447019,-10761.64034755,0.0003249,3]
[330494598,1719509547611,177.86909029,0.00024746,2]
[330494607,1719510443162,-204.64076,0.00021096,2]
[330494608,1719510443184,-341.41885717,0.0002448,2]
[330494610,1719510546135,-2041.57848813,0.00023453,2]
[330494611,1719510546155,-3027.35580709,0.0002448,2]
[330494612,1719510546177,-828.9837009,0.00025064,2]
[330494613,1719510546197,-316.7339622,0.00025134,2]
[330494614,1719510546217,-2116.05892571,0.00025501,2]
[330494615,1719510546238,-947.85332232,0.00025869,2]
[330494616,1719510546259,-300.0,0.000259,2]
[330494617,1719510546279,-300.0,0.00025901,2]
[330494618,1719510546300,-154.96317473,0.00025902,2]
[330494619,1719510546320,-200.0,0.00025902,2]
[330494620,1719510546341,-196.15846741,0.00025902,2]
[330494621,1719510546362,-318.18757632,0.00025902,2]
[330494622,1719510546382,-2251.93348438,0.00026,10]
[330494623,1719510547100,-2748.06651562,0.00026,10]
[330494624,1719510547120,-155.34269425,0.00026574,2]
[330494625,1719510547141,-240.21005704,0.00026574,2]
[330494626,1719510547162,-193.01019719,0.00026574,2]
[330494627,1719510547182,-154.83742071,0.00026574,2]
[330494628,1719510547202,-181.59371313,0.00026574,2]
[330494629,1719510547222,-172.96939093,0.00026574,2]
[330494630,1719510547243,-155.22177039,0.00026574,2]
[330494631,1719510547264,-196.29260031,0.00026574,2]
[330494632,1719510547283,-154.97308394,0.00026574,2]
[330494633,1719510547302,-159.64897566,0.00026574,2]
[330494634,1719510547322,-563.64044373,0.0002661,2]
[330494635,1719510547343,-5469.85206969,0.0002661,2]
[330494636,1719510547363,-24900.0,0.00026671,2]
[330494637,1719510547383,-860.896747,0.0002671,2]
[330494638,1719510547402,-250.24655234,0.00026848,2]
[330494639,1719510547422,-294.97281397,0.00026848,2]
[330494640,1719510547442,-159.21578068,0.00026848,2]
[330494641,1719510547463,-159.73407763,0.00026848,2]
[330494642,1719510547482,-155.77257915,0.00026848,2]
[330494643,1719510547508,-155.17667305,0.00026848,2]
[330494644,1719510547526,-155.03685342,0.00026848,2]
[330494645,1719510547547,-190.68525851,0.00026853,2]
[330494646,1719510547569,-1588.6733583,0.00026914,2]
[330494647,1719510547590,-153.0,0.00026953,2]
[330494648,1719510547610,-154.97340122,0.00027184,2]
[330494649,1719510547631,-154.83742071,0.00027194,2]
[330494650,1719510547652,-204.64076,0.00027195,2]
[330494651,1719510547672,-166.6666669,0.00027252,2]
[330494652,1719510547694,-177.86909029,0.00027265,2]
[330494653,1719510547713,-154.72922386,0.00027399,2]
[330494654,1719510547733,-154.72922386,0.00027399,2]
[330494655,1719510547753,-3000.0,0.00027757,2]
[330494656,1719510547773,-163.724839,0.0002787,2]
[330494657,1719510547792,-1638.14823295,0.0002799,2]
[330494658,1719510547811,-154.83742071,0.00027999,2]
[330494659,1719510547832,-306.27049676,0.00027999,2]
[330494660,1719510547852,-400.0,0.00028032,2]
[330494661,1719510547873,-5469.85206966,0.0002804,2]
[330494662,1719510547894,-420.0,0.00028491,2]
[330494663,1719510547914,-153.80876401,0.00029236,2]
[330494664,1719510547934,-5469.85206966,0.0002947,2]
[330494665,1719510547955,-9484.04,0.00029662,3]
[330494666,1719510547976,-655.53,0.00029662,3]
[330494667,1719510547997,-42185.65991976,0.00029672,2]
[330494668,1719510548018,-1487.40194776,0.00029672,2]
[330494669,1719510548037,-250.27791645,0.00029772,2]
[330494670,1719510548058,-19122.74139566,0.00029793,7]
[330494671,1719510548078,-9602.77204318,0.00029803,2]
[330494672,1719510548099,-825.99151127,0.00029813,2]
[330494673,1719510548118,-155.38523359,0.00029813,2]
[330494674,1719510548137,-1284.46803157,0.00029823,2]
[330494675,1719510548158,-154.83742071,0.00029823,2]
[330494676,1719510548179,-304.81000924,0.00029861,2]
[330494677,1719510548198,-528.76178297,0.00029869,2]
[330494678,1719510548217,-491.68319599,0.00029869,2]
[330494679,1719510548236,-207.73888966,0.00029879,2]
[330494680,1719510548255,-177.86909029,0.00029886,2]
[330494681,1719510548274,-3247.80021622,0.00029903,2]
[330494682,1719510555089,-155.35924573,0.00029672,2]
[330494683,1719510555111,-676.37621918,0.00029903,2]
[330494684,1719510555136,-154.83742071,0.00029904,2]
[330494685,1719510555157,-580.55653533,0.00029979,2]
[330494686,1719510563129,-1444.93433274,0.0002448,2]
[330494687,1719510567088,-671.12459297,0.0002448,2]
[330494688,1719510567109,-1103.33519031,0.00029672,2]
[330494689,1719510567130,-5275.30214517,0.00029999,2]
[330494690,1719510567151,-563.6404437,0.00030309,2]
[330494691,1719510567172,-177.86909029,0.00030354,7]
[330494692,1719510628953,1248.51108852,0.0003004,2]
[330494693,1719510628975,151.69521147,0.0003004,2]
[330494694,1719510628999,1599.79370001,0.0003004,2]
[330494724,1719510632508,-1722.38365656,0.00030047,120]
[330494726,1719510632521,-681.36618589,0.00030047,120]
[330494728,1719510632535,-400.0,0.00030899,2]
[330494730,1719510632544,-5469.85206966,0.000309,2]
[330494731,1719510632554,-87.28653115,0.00031636,7]
[330494732,1719510632567,-66.52223286,0.00031636,7]
[330494733,1719510632577,-2741.94484494,0.00031798,2]
[330494759,1719510638222,-1677.54370494,0.00031798,2]
[330494761,1719510638232,-685.46631339,0.0003233,2]
[330494763,1719510638243,-4784.38575627,0.0003233,2]
[330494765,1719510638253,-33912.5469553,0.0003243,3]
[330494766,1719510638263,-10090.23048915,0.0003246,7]
[330494767,1719510638358,-207.17383992,0.0003246,7]
[330494768,1719510638368,-2428.13971091,0.0003246,3]
[330494769,1719510638416,-3691.32258012,0.0003246,3]
[330494770,1719510638428,-27793.08466427,0.0003246,3]
[330494771,1719510638437,-14807.74,0.00032468,3]
[330494772,1719510638447,-33912.5469553,0.00032477,3]
[330494773,1719510638456,-173.79999449,0.00032489,2]
[330494774,1719510638466,-283.95938254,0.0003249,3]
[330494775,1719510638475,-50752.72163795,0.0003249,3]
[330494776,1719510638488,-2609.71283794,0.0003249,3]
[330494809,1719510640648,-3167.34922923,0.0003249,3]
[330494811,1719510640661,-2989.06959,0.0003249,3]
[330495015,1719510643749,-8306.24061548,0.0003249,3]
[330495016,1719510643759,-1000.0,0.00032499,30]
[330495017,1719510643768,-2104.57705497,0.000325,7]
[330495045,1719510646504,-7456.79364286,0.000325,7]
[330495046,1719510646513,-33943.20635714,0.000325,60]
[330495047,1719510647130,-670.0,0.000325,60]
[330495075,1719510650587,153.0,0.00026953,2]
[330495076,1719510651589,153.0,0.00026953,2]
[330495077,1719510652602,153.0,0.00026953,2]
[330495078,1719510654214,153.0,0.00026953,2]
[330495079,1719510705471,190.68525851,0.00029947,2]
[330495080,1719510707813,202.64780772,0.00029947,2]
[330495081,1719510742344,153.80876402,0.00024151,2]
[330495082,1719510742843,153.80876403,0.00027351,2]
[330495083,1719510744180,177.86909029,0.0002453,2]
[330495087,1719510900596,294.0,0.00025999,120]
[330495102,1719511556164,-208.402706,0.00021096,2]
[330495103,1719511556184,-430.448373,0.00025019,2]
[330495104,1719511556205,-547.41063021,0.00025501,2]
[330495105,1719511636113,-154.79103211,0.00025999,2]
[330495106,1719511636133,-181.6707771,0.00025999,2]
[330495107,1719511636153,-1175.83406819,0.0002612,2]
[330495108,1719511638095,-1824.16593181,0.0002612,2]
[330495109,1719511638116,-300.0,0.00026237,2]
[330495110,1719511638136,-300.0,0.00026237,2]
[330495111,1719511638158,-1495.8404687,0.00026238,2]
[330495112,1719511640106,-23404.1595313,0.00026238,2]
[330495113,1719511640126,-308.2491863,0.00026437,2]
[330495114,1719511640147,-1329.2387037,0.00027069,2]
[330495115,1719511640168,-4767.78140592,0.00027184,2]
[330495116,1719511640189,-9606.64079942,0.00027184,2]
[330495117,1719511653186,-228.10280662,0.00027184,2]
[330495118,1719511731330,-190.68525851,0.00020996,2]
[330495120,1719511747109,-181.97128128,0.00027184,2]
[330495121,1719511747128,-208.402706,0.00027195,2]
[330495122,1719511747147,-300.0,0.00029792,2]
[330495123,1719511747166,-565.7116958,0.00029793,2]
[330495124,1719511747184,-3924.1764354,0.00029793,2]
[330495125,1719511747204,-573.11962821,0.00029801,2]
[330495126,1719511747224,-2683.6267725,0.00029803,2]
[330495127,1719511747243,-10446.3655557,0.00029823,2]
[330495128,1719511747262,-183.70617726,0.0002987,2]
[330495129,1719511747281,-25511.4087304,0.00029901,2]
[330495130,1719511747301,-491.60986908,0.00029901,2]
[330495131,1719511747320,-284.07649523,0.00029979,2]
[330495132,1719511747339,-193.01019719,0.00029999,2]
[330495133,1719511747358,-250.24655234,0.00029999,2]
[330495134,1719511747377,-155.77257915,0.00029999,2]
[330495135,1719511747396,-181.59371313,0.00029999,2]
[330495136,1719511747416,-155.34269425,0.00029999,2]
[330495137,1719511747435,-286.71735207,0.0003,4]
[330495138,1719511747454,-155.17667305,0.00030229,4]
[330495139,1719511747473,-240.21005704,0.00030229,4]
[330495140,1719511747491,-159.21578068,0.00030229,4]
[330495141,1719511747511,-294.97281397,0.00030229,2]
[330495142,1719511747531,-196.29260031,0.00030229,4]
[330495143,1719511747550,-155.22177039,0.00030229,4]
[330495144,1719511747569,-159.73407763,0.00030229,4]
[330495145,1719511747588,-154.83742071,0.00030229,4]
[330495146,1719511747608,-172.96939093,0.00030229,4]
[330495147,1719511747628,-1603.1499453,0.00030452,2]
[330495148,1719511750092,-5621.12772694,0.00029793,2]
[330495149,1719511750114,-159.64897566,0.00029999,2]
[330495150,1719511750135,-3124.78288904,0.00029999,4]
[330495151,1719511750157,-1080.47682719,0.00030452,2]
[330495152,1719511750177,-7256.42175664,0.00030483,2]
[330495153,1719511751098,-1756.48103849,0.00030483,2]
[330495154,1719511752623,-1670.24120999,0.00030483,2]
[330495155,1719511753121,-151.66491937,0.00030483,2]
[330495156,1719511755116,-707.12662546,0.00030483,2]
[330495157,1719511760566,907.94624025,0.00029999,2]
[330495215,1719511832808,-6688.48466544,0.00029879,2]
[330495226,1719511832901,-7651.21947996,0.00029879,2]
[330495228,1719511832910,-234.0,0.00029903,2]
[330495231,1719511832926,-1516.58842086,0.00029979,2]
[330495233,1719511832940,-401.60278834,0.00029999,2]
[330495235,1719511832950,-2683.62677249,0.00031102,2]
[330495237,1719511832959,-563.96023053,0.00031251,4]
[330495238,1719511832968,-1968.31537822,0.00031751,2]
[330495241,1719511832981,-604.99998376,0.00031751,2]
[330495363,1719511838522,-1588.6733583,0.00029832,2]
[330495364,1719511838532,-110.31141051,0.00031751,2]
[330495365,1719511838542,-253.802984,0.00032187,7]
[330495366,1719511838553,-178.321704,0.00032187,7]
[330495367,1719511838562,-178.321704,0.00032187,7]
[330495368,1719511838572,-300.0,0.00032188,2]
[330495369,1719511838581,-154.97308394,0.00032229,4]
[330495370,1719511838591,-660.61081995,0.00032229,4]
[330495371,1719511838600,-208.80469015,0.00032229,4]
[330495372,1719511838610,-301.89813809,0.00032229,4]
[330495373,1719511838619,-5280.10467953,0.00032246,2]
[330495374,1719511838629,-155.03685342,0.00032272,4]
[330495375,1719511838638,-926.89559386,0.00032399,2]
[330495376,1719511838648,-2683.62677249,0.000324,2]
[330495377,1719511838658,-28078.0705761,0.0003249,3]
[330495378,1719511838667,-153.0,0.00032493,2]
[330495379,1719511838676,-153.0,0.00032493,2]
[330495380,1719511838686,-5766.23602395,0.000325,7]
[330495381,1719511838696,-27386.72719631,0.000325,60]
[330495383,1719511838706,-221.0,0.000325,5]
[330495385,1719511838716,-283.95938254,0.0003267,3]
[330495387,1719511838726,-504.10379941,0.00033,3]
[330495389,1719511838735,-1093.211731,0.00033209,2]
[330495391,1719511838745,-208.402706,0.00033295,2]
[330495393,1719511838755,-12339.78,0.00033802,3]
[330495395,1719511838764,-151.0,0.00033812,7]
[330495397,1719511838774,-159.484196,0.00033812,7]
[330495399,1719511838784,-159.484196,0.00033812,7]
[330495407,1719511838793,-178.321704,0.00033812,7]
[330495408,1719511838920,-151.0,0.00033812,7]
[330495409,1719511838932,-178.321704,0.00033812,7]
[330495410,1719511838944,-151.0,0.00033812,7]
[330495411,1719511838954,-151.0,0.00033812,7]
[330495412,1719511838963,-209.924961,0.00033812,7]
[330495413,1719511838975,-916.922966,0.00033812,7]
[330495414,1719511838985,-916.922966,0.00033812,7]
[330495415,1719511838995,-151.0,0.0003398,7]
[330495416,1719511839005,-159.484196,0.0003398,7]
[330495417,1719511839018,-159.484196,0.0003398,7]
[330495418,1719511839028,-508.007442,0.0003398,7]
[330495419,1719511839038,-508.007442,0.0003398,7]
[330495421,1719511839048,-155.27627,0.0003398,30]
[330495423,1719511839059,-151.0,0.0003398,7]
[330495424,1719511839068,-1000.0,0.00033989,30]
[330495425,1719511839078,-630.87898843,0.00033989,30]
[330495426,1719511839089,-151.0,0.0003399,7]
[330495427,1719511839098,-152.440887,0.0003399,7]
[330495428,1719511839108,-151.0,0.0003399,7]
[330495429,1719511839118,-246.032052,0.0003399,7]
[330495430,1719511839128,-151.0,0.0003399,7]
[330495431,1719511839138,-151.0,0.0003399,7]
[330495432,1719511839148,-235.231349,0.0003399,7]
[330495433,1719511839158,-151.0,0.0003399,7]
[330495434,1719511839168,-155.092529,0.0003399,7]
[330495435,1719511839178,-159.484196,0.0003399,7]
[330495436,1719511839188,-159.484196,0.0003399,7]
[330495437,1719511839198,-178.321704,0.0003399,7]
[330495438,1719511839208,-178.321704,0.0003399,7]
[330495439,1719511839218,-151.0,0.0003399,7]
[330495440,1719511839229,-151.0,0.0003399,7]
[330495441,1719511839238,-916.922966,0.0003399,7]
[330495442,1719511839249,-916.922966,0.0003399,7]
[330495443,1719511839259,-56156.1411522,0.0003399,3]
[330495444,1719511839268,-508.007442,0.0003399,7]
[330495445,1719511839278,-508.007442,0.0003399,7]
[330495446,1719511839288,-151.0,0.0003399,7]
[330495447,1719511839298,-23845.31177467,0.00034,30]
[330495448,1719511839310,-2364.12746684,0.00034,30]
[330495449,1719511839322,-1003.33948012,0.00034,30]
[330495450,1719511839337,-348.0,0.00034,30]
[330495451,1719511839348,-21321.2316973,0.00034,30]
[330495468,1719511840814,-28295.99232133,0.00034,30]
[330495472,1719511840905,-2821.99725974,0.00034,30]
[330495473,1719511840916,-151.0,0.00034,7]
[330495474,1719511840926,-158.543487,0.00034,7]
[330495475,1719511840940,-151.0,0.00034,7]
[330495476,1719511840950,-153.386898,0.00034,7]
[330495477,1719511840959,-151.0,0.00034,7]
[330495478,1719511840968,-151.0,0.00034,7]
[330495479,1719511840978,-151.0,0.00034,7]
[330495480,1719511840987,-151.0,0.00034,7]
[330495481,1719511840997,-151.0,0.00034,7]
[330495482,1719511841006,-151.0,0.00034,7]
[330495483,1719511841018,-159.484196,0.00034,7]
[330495484,1719511841029,-159.484196,0.00034,7]
[330495485,1719511841038,-178.321704,0.00034,7]
[330495486,1719511841048,-178.321704,0.00034,7]
[330495487,1719511841057,-151.0,0.00034,7]
[330495488,1719511841066,-151.0,0.00034,7]
[330495489,1719511841074,-916.922966,0.00034,7]
[330495490,1719511841083,-916.922966,0.00034,7]
[330495491,1719511841093,-508.007442,0.00034,7]
[330495492,1719511841103,-508.007442,0.00034,7]
[330495493,1719511841112,-258.676388,0.00034,7]
[330495494,1719511841121,-2129.54772975,0.00034229,4]
[330495495,1719511841131,-200.0,0.00034251,120]
[330495496,1719511841141,-1764.7829008,0.00034336,4]
[330495497,1719511841150,-1913.78185736,0.00034336,4]
[330495498,1719511841159,-1559.42989782,0.00034336,4]
[330495499,1719511841168,-159.72384623,0.00034422,2]
[330495500,1719511841177,-28078.0705761,0.00034464,4]
[330495501,1719511841187,-159.484196,0.00034464,7]
[330495502,1719511841196,-159.484196,0.00034464,7]
[330495503,1719511841205,-178.321704,0.00034464,7]
[330495504,1719511841214,-178.321704,0.00034464,7]
[330495505,1719511841223,-151.0,0.00034464,7]
[330495506,1719511841232,-153.729144,0.00034464,7]
[330495507,1719511841241,-916.922966,0.00034464,7]
[330495508,1719511841250,-916.922966,0.00034464,7]
[330495509,1719511841259,-508.007442,0.00034464,7]
[330495510,1719511841268,-508.007442,0.00034464,7]
[330495511,1719511841278,-293.494353,0.00034464,7]
[330495512,1719511841287,-293.494353,0.00034464,7]
[330495513,1719511841295,-187.991261,0.00034464,7]
[330495514,1719511841304,-187.991261,0.00034464,7]
[330495515,1719511841313,-151.0,0.00034464,7]
[330495516,1719511841323,-156.387391,0.00034464,7]
[330495517,1719511841332,-200.851024,0.00034464,7]
[330495518,1719511841341,-151.0,0.00034464,7]
[330495519,1719511841350,-200.851024,0.00034464,7]
[330495520,1719511841359,-1132.57521393,0.00034467,4]
[330495521,1719511841370,-1132.57521393,0.00034467,4]
[330495522,1719511841379,-972.815005,0.00034472,4]
[330495523,1719511841388,-597.79480567,0.00034472,4]
[330495524,1719511841397,-2150.69638829,0.00034474,5]
[330495525,1719511841644,-3709.85,0.00034474,5]
[330495526,1719511841656,-2879.77655,0.00034474,5]
[330495527,1719511841668,-15815.88482049,0.00034474,5]
[330495528,1719511841677,-151.0,0.00034474,7]
[330495529,1719511841688,-159.484196,0.00034541,7]
[330495530,1719511841697,-159.484196,0.00034541,7]
[330495531,1719511841707,-178.321704,0.00034541,7]
[330495532,1719511841716,-178.321704,0.00034541,7]
[330495533,1719511841726,-151.0,0.00034541,7]
[330495534,1719511841735,-916.922966,0.00034541,7]
[330495535,1719511841744,-916.922966,0.00034541,7]
[330495536,1719511841753,-508.007442,0.00034541,7]
[330495537,1719511841762,-508.007442,0.00034541,7]
[330495538,1719511841771,-642.06419184,0.0003455,4]
[330495539,1719511841780,-2743.00372686,0.0003455,2]
[330495540,1719511841909,-151.0,0.00034552,7]
[330495541,1719511841920,-176.072401,0.00034552,7]
[330495542,1719511841935,-151.0,0.00034552,7]
[330495543,1719511841943,-151.0,0.00034552,7]
[330495544,1719511841953,-158.543105,0.00034552,7]
[330495545,1719511841963,-151.0,0.00034552,7]
[330495546,1719511841972,-922.90976254,0.0003456,4]
[330495555,1719511843822,-194.96496579,0.0003456,4]
[330495556,1719511843832,-486.05419087,0.00034562,4]
[330495557,1719511843844,-45.13236334,0.00034562,4]
[330495558,1719511843853,-293.494353,0.00034562,7]
[330495559,1719511843862,-293.494353,0.00034562,7]
[330495560,1719511843871,-187.991261,0.00034562,7]
[330495561,1719511843880,-36.34469153,0.00034562,7]
[330495562,1719511843892,-151.64656947,0.00034562,7]
[330495563,1719511843901,-151.0,0.00034562,7]
[330495564,1719511843911,-200.851024,0.00034562,7]
[330495565,1719511843922,-200.851024,0.00034562,7]
[330495566,1719511843934,-305.89530977,0.00034574,4]
[330495567,1719511843944,-404.74635689,0.00034574,4]
[330495608,1719511958874,319.83080687,0.00026,120]
[330495632,1719512644487,2000.0,0.00026,120]
[330495640,1719512739177,-214.97210853,0.00020996,2]
[330495641,1719512739198,-99.91464227,0.00021096,2]
[330495643,1719512837117,-77.22765773,0.00021096,2]
[330495644,1719512837144,-73.77234227,0.00024068,2]
[330495646,1719512847098,-153.80876398,0.00024215,2]
[330495647,1719512847122,-150.76124226,0.00024464,2]
[330495648,1719512847144,-1012.64462,0.00024962,2]
[330495649,1719512847164,-250.0,0.00025073,2]
[330495650,1719512847185,-150.76124226,0.00025098,2]
[330495651,1719512847206,-153.80876398,0.00025102,2]
[330495652,1719512847226,-150.76124226,0.00025355,2]
[330495653,1719512847247,-3181.33408829,0.00025501,2]
[330495654,1719512946435,-300.0,0.00022578,2]
[330495655,1719512946455,-300.0,0.00022578,2]
[330495656,1719512946476,-18190.929,0.00022579,2]